bitfinex/quotes_BTCUSD_20230831
["timestamp","ask_amount","ask_price","bid_price","bid_amount"]
[1693470664963,2.90340229,27267.0,27266.0,0.037]
[1693470665224,2.90538229,27267.0,27266.0,0.037]
[1693470665635,2.90664229,27267.0,27266.0,0.037]
[1693470666045,2.90550229,27267.0,27266.0,0.037]
[1693470666243,2.90658229,27267.0,27266.0,0.037]
[1693470666446,2.90538229,27267.0,27266.0,0.037]
[1693470666652,2.90604229,27267.0,27266.0,0.037]
[1693470666871,2.90724229,27267.0,27266.0,0.037]
[1693470667273,2.90862229,27267.0,27266.0,0.037]
[1693470667452,2.90838229,27267.0,27266.0,0.037]
[1693470667653,2.90886229,27267.0,27266.0,0.037]
[1693470667854,2.90316229,27267.0,27266.0,0.037]
[1693470668135,2.90730229,27267.0,27266.0,0.037]
[1693470668451,2.90736229,27267.0,27266.0,0.037]
[1693470668674,2.90760229,27267.0,27266.0,0.037]
[1693470668877,2.90772229,27267.0,27266.0,0.037]
[1693470669037,3.21517986,27267.0,27266.0,0.037]
[1693470669238,3.21307986,27267.0,27266.0,0.037]
[1693470669448,3.21181986,27267.0,27266.0,0.037]
[1693470669652,3.21211986,27267.0,27266.0,0.037]
[1693470669853,3.21217986,27267.0,27266.0,0.037]
[1693470670054,3.21043986,27267.0,27266.0,0.037]
[1693470670300,3.21073986,27267.0,27266.0,0.037]
[1693470670501,3.21097986,27267.0,27266.0,0.037]
[1693470670701,3.21103986,27267.0,27266.0,0.037]
[1693470670956,3.21127986,27267.0,27266.0,0.037]
[1693470671167,2.90334229,27267.0,27266.0,0.037]
[1693470671338,2.90784229,27267.0,27266.0,0.037]
[1693470671540,3.17624637,27267.0,27266.0,0.037]
[1693470671743,3.17804637,27267.0,27266.0,0.037]
[1693470671950,3.17846637,27267.0,27266.0,0.037]
[1693470672149,3.17798637,27267.0,27266.0,0.037]
[1693470672328,3.17786637,27267.0,27266.0,0.037]
[1693470672525,3.17756637,27267.0,27266.0,0.037]
[1693470672731,3.17751561,27267.0,27266.0,0.037]
[1693470672932,3.17757561,27267.0,27266.0,0.037]
[1693470673250,3.17529561,27267.0,27266.0,0.037]
[1693470673479,3.4481612,27267.0,27266.0,0.037]
[1693470673921,3.17175561,27267.0,27266.0,0.037]
[1693470674124,3.17619561,27267.0,27266.0,0.037]
[1693470674330,3.48254925,27267.0,27266.0,0.037]
[1693470674553,3.21102517,27267.0,27266.0,0.037]
[1693470674754,3.20916517,27267.0,27266.0,0.037]
[1693470674956,3.20796517,27267.0,27266.0,0.037]
[1693470675160,3.20448517,27267.0,27266.0,0.037]
[1693470675375,3.20454517,27267.0,27266.0,0.037]
[1693470675555,3.20460517,27267.0,27266.0,0.037]
[1693470675690,3.20490517,27267.0,27266.0,0.037]
[1693470675896,3.20502517,27267.0,27266.0,0.037]
[1693470676098,3.20694517,27267.0,27266.0,0.037]
[1693470676304,3.20706517,27267.0,27266.0,0.037]
[1693470676504,3.21144517,27267.0,27266.0,0.037]
[1693470677006,3.21174517,27267.0,27266.0,0.037]
[1693470677205,3.21168517,27267.0,27266.0,0.037]
[1693470677611,3.21162517,27267.0,27266.0,0.037]
[1693470677814,3.21072517,27267.0,27266.0,0.037]
[1693470678017,3.47480925,27267.0,27266.0,0.037]
[1693470678217,3.21078517,27267.0,27266.0,0.037]
[1693470678430,3.20976517,27267.0,27266.0,0.037]
[1693470678632,3.21036517,27267.0,27266.0,0.037]
[1693470678836,3.21042517,27267.0,27266.0,0.037]
[1693470679038,3.20970517,27267.0,27266.0,0.037]
[1693470679243,3.20862517,27267.0,27266.0,0.037]
[1693470679464,3.20868517,27267.0,27266.0,0.037]
[1693470679665,3.20298517,27267.0,27266.0,0.037]
[1693470679863,3.20256517,27267.0,27266.0,0.037]
[1693470680079,3.20262517,27267.0,27266.0,0.037]
[1693470680290,3.20448517,27267.0,27266.0,0.037]
[1693470680683,3.20454517,27267.0,27266.0,0.037]
[1693470680878,3.19902517,27267.0,27266.0,0.037]
[1693470681085,3.18792517,27267.0,27266.0,0.037]
[1693470681285,3.12378517,27267.0,27266.0,0.037]
[1693470682785,3.18564517,27267.0,27266.0,0.037]
[1693470682933,3.18870517,27267.0,27266.0,0.037]
[1693470683147,3.18882517,27267.0,27266.0,0.037]
[1693470683352,3.19314517,27267.0,27266.0,0.037]
[1693470683556,3.19320517,27267.0,27266.0,0.037]
[1693470683785,3.19368517,27267.0,27266.0,0.037]
[1693470683984,3.19266517,27267.0,27266.0,0.037]
[1693470684225,3.19278517,27267.0,27266.0,0.037]
[1693470684376,3.19272517,27267.0,27266.0,0.037]
[1693470684584,3.19230517,27267.0,27266.0,0.037]
[1693470684784,3.19314517,27267.0,27266.0,0.037]
[1693470684985,3.19296517,27267.0,27266.0,0.037]
[1693470685186,3.19320517,27267.0,27266.0,0.037]
[1693470685366,3.19326517,27267.0,27266.0,0.037]
[1693470685574,3.19332517,27267.0,27266.0,0.037]
[1693470685774,3.19548517,27267.0,27266.0,0.037]
[1693470685973,3.19686517,27267.0,27266.0,0.037]
[1693470686241,3.19758517,27267.0,27266.0,0.037]
[1693470686470,3.19872517,27267.0,27266.0,0.037]
[1693470686648,3.19914517,27267.0,27266.0,0.037]
[1693470686781,3.19950517,27267.0,27266.0,0.037]
[1693470686980,3.19956517,27267.0,27266.0,0.037]
[1693470687181,3.19962517,27267.0,27266.0,0.037]
[1693470687428,3.19956517,27267.0,27266.0,0.037]
[1693470687630,3.19968517,27267.0,27266.0,0.037]
[1693470687831,3.19974517,27267.0,27266.0,0.037]
[1693470688033,3.20004517,27267.0,27266.0,0.037]
[1693470688232,3.19794517,27267.0,27266.0,0.037]
[1693470688440,3.19620517,27267.0,27266.0,0.037]
[1693470688644,3.19482517,27267.0,27266.0,0.037]
[1693470688852,3.19446517,27267.0,27266.0,0.037]
[1693470689059,3.19452517,27267.0,27266.0,0.037]
[1693470689217,3.19080517,27267.0,27266.0,0.037]
[1693470689416,3.19092517,27267.0,27266.0,0.037]
[1693470689644,3.19152517,27267.0,27266.0,0.037]
[1693470689849,3.19110517,27267.0,27266.0,0.037]
[1693470690046,3.19104517,27267.0,27266.0,0.037]
[1693470690246,3.19110517,27267.0,27266.0,0.037]
[1693470690426,3.19122517,27267.0,27266.0,0.037]
[1693470690622,3.19344517,27267.0,27266.0,0.037]
[1693470690825,3.18070531,27267.0,27266.0,0.037]
[1693470691026,3.18034531,27267.0,27266.0,0.037]
[1693470691296,3.17938531,27267.0,27266.0,0.037]
[1693470691520,3.18046531,27267.0,27266.0,0.037]
[1693470691643,3.18118531,27267.0,27266.0,0.037]
[1693470691852,3.18220531,27267.0,27266.0,0.037]
[1693470692078,3.18214531,27267.0,27266.0,0.037]
[1693470692274,3.18220531,27267.0,27266.0,0.037]
[1693470692661,3.18238531,27267.0,27266.0,0.037]
[1693470692859,3.18136531,27267.0,27266.0,0.037]
[1693470693032,3.18214531,27267.0,27266.0,0.037]
[1693470693253,3.18232531,27267.0,27266.0,0.037]
[1693470693458,3.18298531,27267.0,27266.0,0.037]
[1693470693958,3.18376531,27267.0,27266.0,0.037]
[1693470694983,2.87993167,27267.0,27266.0,0.037]
[1693470695194,2.88197167,27267.0,27266.0,0.037]
[1693470695393,2.88281167,27267.0,27266.0,0.037]
[1693470695591,2.88503167,27267.0,27266.0,0.037]
[1693470695818,3.1717749,27267.0,27266.0,0.037]
[1693470696024,3.1712349,27267.0,27266.0,0.037]
[1693470696305,3.1702149,27267.0,27266.0,0.037]
[1693470696503,3.1703949,27267.0,27266.0,0.037]
[1693470696697,2.88545167,27267.0,27266.0,0.037]
[1693470696898,2.88569167,27267.0,27266.0,0.037]
[1693470697156,2.88557167,27267.0,27266.0,0.037]
[1693470697729,2.88563167,27267.0,27266.0,0.037]
[1693470697924,2.88617167,27267.0,27266.0,0.037]
[1693470698147,2.88677167,27267.0,27266.0,0.037]
[1693470698350,2.88689167,27267.0,27266.0,0.037]
[1693470698672,2.89409167,27267.0,27266.0,0.037]
[1693470698886,2.89445167,27267.0,27266.0,0.037]
[1693470699088,2.89169167,27267.0,27266.0,0.037]
[1693470699387,2.89199167,27267.0,27266.0,0.037]
[1693470699527,2.89133167,27267.0,27266.0,0.037]
[1693470699725,2.89121167,27267.0,27266.0,0.037]
[1693470699934,2.89109167,27267.0,27266.0,0.037]
[1693470700184,2.89103167,27267.0,27266.0,0.037]
[1693470700386,2.89223167,27267.0,27266.0,0.037]
[1693470700589,2.89235167,27267.0,27266.0,0.037]
[1693470700987,3.20208781,27267.0,27266.0,0.037]
[1693470701134,3.20166781,27267.0,27266.0,0.037]
[1693470701334,2.89205167,27267.0,27266.0,0.037]
[1693470701603,3.13451371,27267.0,27266.0,0.037]
[1693470701809,3.13367371,27267.0,27266.0,0.037]
[1693470702304,3.13235371,27267.0,27266.0,0.037]
[1693470702480,3.13325371,27267.0,27266.0,0.037]
[1693470702679,3.13445371,27267.0,27266.0,0.037]
[1693470702839,2.89493167,27267.0,27266.0,0.037]
[1693470703046,2.89457167,27267.0,27266.0,0.037]
[1693470703283,3.43552035,27267.0,27266.0,0.037]
[1693470703492,3.43306035,27267.0,27266.0,0.037]
[1693470703699,3.15589575,27267.0,27266.0,0.037]
[1693470703913,3.15469575,27267.0,27266.0,0.037]
[1693470704121,3.15721575,27267.0,27266.0,0.037]
[1693470704317,3.15715575,27267.0,27266.0,0.037]
[1693470704580,3.15577575,27267.0,27266.0,0.037]
[1693470704934,3.16357575,27267.0,27266.0,0.037]
[1693470705139,3.18427575,27267.0,27266.0,0.037]
[1693470705337,3.18085575,27267.0,27266.0,0.037]
[1693470705543,3.17857575,27267.0,27266.0,0.037]
[1693470705771,3.17767575,27267.0,27266.0,0.037]
[1693470705947,3.17725575,27267.0,27266.0,0.037]
[1693470706142,3.17665575,27267.0,27266.0,0.037]
[1693470706377,3.17647575,27267.0,27266.0,0.037]
[1693470706599,3.17617575,27267.0,27266.0,0.037]
[1693470706902,3.17623575,27267.0,27266.0,0.037]
[1693470707095,3.17611575,27267.0,27266.0,0.037]
[1693470707299,3.17587575,27267.0,27266.0,0.037]
[1693470707499,3.17593575,27267.0,27266.0,0.037]
[1693470707657,3.17641575,27267.0,27266.0,0.037]
[1693470707998,3.17875575,27267.0,27266.0,0.037]
[1693470708204,3.17761575,27267.0,27266.0,0.037]
[1693470708382,3.17749575,27267.0,27266.0,0.037]
[1693470708586,3.17737575,27267.0,27266.0,0.037]
[1693470708785,3.17893575,27267.0,27266.0,0.037]
[1693470708985,3.18103575,27267.0,27266.0,0.037]
[1693470709313,3.17593575,27267.0,27266.0,0.037]
[1693470709527,3.18175575,27267.0,27266.0,0.037]
[1693470709736,3.18217575,27267.0,27266.0,0.037]
[1693470709958,3.17791575,27267.0,27266.0,0.037]
[1693470710155,3.17737575,27267.0,27266.0,0.037]
[1693470710337,3.17809575,27267.0,27266.0,0.037]
[1693470710580,3.17641575,27267.0,27266.0,0.037]
[1693470711004,3.17761575,27267.0,27266.0,0.037]
[1693470711209,3.17617575,27267.0,27266.0,0.037]
[1693470711362,3.17725575,27267.0,27266.0,0.037]
[1693470711564,3.17617575,27267.0,27266.0,0.037]
[1693470711829,3.17665575,27267.0,27266.0,0.037]
[1693470712013,3.17563575,27267.0,27266.0,0.037]
[1693470712168,3.17779575,27267.0,27266.0,0.037]
[1693470712373,3.17785575,27267.0,27266.0,0.037]
[1693470712600,3.17713575,27267.0,27266.0,0.037]
[1693470712776,3.17665575,27267.0,27266.0,0.037]
[1693470712976,3.17695575,27267.0,27266.0,0.037]
[1693470713311,3.17653575,27267.0,27266.0,0.037]
[1693470713674,3.17575575,27267.0,27266.0,0.037]
[1693470713873,3.76918566,27267.0,27266.0,0.037]
[1693470714078,4.06702566,27267.0,27266.0,0.037]
[1693470714280,4.05850566,27267.0,27266.0,0.037]
[1693470714479,4.05502566,27267.0,27266.0,0.037]
[1693470714707,4.07314566,27267.0,27266.0,0.037]
[1693470714898,4.07314566,27267.0,27263.0,0.021109]
[1693470714899,2.220704,27264.0,27263.0,0.021109]
[1693470715192,4.62565367,27264.0,27263.0,0.021109]
[1693470715400,4.64007367,27264.0,27263.0,0.021109]
[1693470715620,4.64067367,27264.0,27263.0,0.021109]
[1693470715827,4.63947367,27264.0,27263.0,0.021109]
[1693470716031,4.64073367,27264.0,27263.0,0.021109]
[1693470716230,4.64067367,27264.0,27263.0,0.021109]
[1693470716357,4.64073367,27264.0,27263.0,0.023109]
[1693470716577,4.70239367,27264.0,27263.0,0.023109]
[1693470716982,4.70335367,27264.0,27263.0,0.023109]
[1693470717183,4.92672523,27264.0,27263.0,0.023109]
[1693470717384,4.92660523,27264.0,27263.0,0.023109]
[1693470717606,4.70539367,27264.0,27263.0,0.023109]
[1693470717793,4.70545367,27264.0,27263.0,0.023109]
[1693470717996,4.70611367,27264.0,27263.0,0.023109]
[1693470718273,4.92599425,27264.0,27263.0,0.023109]
[1693470718482,4.92593425,27264.0,27263.0,0.023109]
[1693470718702,4.92503425,27264.0,27263.0,0.023109]
[1693470718907,4.92833425,27264.0,27263.0,0.023109]
[1693470719124,6.10222078,27264.0,27263.0,0.023109]
[1693470719330,6.10222078,27264.0,27254.0,0.1844]
[1693470719331,0.02,27261.0,27254.0,0.1844]
[1693470719551,0.02,27261.0,27259.0,0.02209325]
[1693470719552,4.53862986,27260.0,27259.0,0.02209325]
[1693470719808,4.53862986,27260.0,27259.0,0.021109]
[1693470720019,4.53862986,27260.0,27254.0,0.00099891]
[1693470720020,0.02,27257.0,27254.0,0.00099891]
[1693470720225,0.16334105,27255.0,27254.0,0.00099891]
[1693470720447,2.14342357,27255.0,27251.0,0.01710791]
[1693470720646,0.0754,27253.0,27251.0,0.01710791]
[1693470720846,1.32175252,27253.0,27252.0,0.01507098]
[1693470721053,1.17536911,27253.0,27252.0,0.01507098]
[1693470721270,0.95364362,27256.0,27252.0,0.74896198]
[1693470721478,0.95362762,27257.0,27254.0,0.733834]
[1693470721690,0.95362762,27257.0,27254.0,0.04003411]
[1693470721691,2.28926605,27257.0,27254.0,0.04003411]
[1693470721901,2.28926605,27257.0,27253.0,0.849248]
[1693470722325,2.51733732,27257.0,27253.0,0.1154]
[1693470722533,1.75884985,27256.0,27254.0,0.02]
[1693470722740,2.85873296,27256.0,27254.0,0.01679685]
[1693470722953,2.20343,27255.0,27254.0,0.01679685]
[1693470723162,2.20143,27255.0,27254.0,0.01679685]
[1693470723412,2.20143,27255.0,27253.0,0.04]
[1693470724034,2.20343,27255.0,27254.0,0.01679685]
[1693470724437,2.20143,27255.0,27253.0,0.04]
[1693470724645,2.20343,27255.0,27253.0,0.04]
[1693470725228,2.20643,27255.0,27253.0,0.04]
[1693470725437,0.005,27255.0,27253.0,0.04]
[1693470725640,0.005,27255.0,27254.0,0.02]
[1693470725816,0.002,27255.0,27254.0,0.02]
[1693470726168,0.003,27255.0,27254.0,0.02]
[1693470726540,0.005,27255.0,27254.0,0.02]
[1693470726718,0.002,27255.0,27254.0,0.02]
[1693470727124,0.005,27255.0,27254.0,0.02]
[1693470731867,0.005,27255.0,27254.0,0.753837]
[1693470732203,0.005,27255.0,27254.0,2.70759011]
[1693470732417,0.005,27255.0,27254.0,2.80299011]
[1693470733112,0.002,27255.0,27254.0,2.80299011]
[1693470733313,0.006,27255.0,27254.0,3.20669011]
[1693470733790,0.004,27255.0,27254.0,3.20669011]
[1693470733993,0.008,27255.0,27254.0,3.20669011]
[1693470734418,0.004,27255.0,27254.0,3.20669011]
[1693470734627,0.008,27255.0,27254.0,3.20669011]
[1693470735036,0.004,27255.0,27254.0,3.18869011]
[1693470735244,0.008,27255.0,27254.0,3.20669011]
[1693470737658,0.008,27255.0,27254.0,3.22175154]
[1693470751186,0.008,27255.0,27254.0,3.20175154]
[1693470751357,0.008,27255.0,27254.0,3.22175154]
[1693470754331,0.008,27255.0,27254.0,3.24175154]
[1693470761247,0.008,27255.0,27254.0,4.29935931]
[1693470765272,0.008,27255.0,27254.0,4.27935931]
[1693470765478,0.008,27255.0,27254.0,4.29935931]
[1693470769158,0.008,27255.0,27254.0,4.27935931]
[1693470769305,0.008,27255.0,27254.0,4.29935931]
[1693470769908,0.008,27255.0,27254.0,4.3873272]
[1693470771156,0.008,27255.0,27254.0,4.3673272]
[1693470771332,0.008,27255.0,27254.0,4.3873272]
[1693470771534,0.14656,27259.0,27258.0,0.02]
[1693470771772,0.14656,27259.0,27258.0,0.04]
[1693470771978,0.940776,27260.0,27258.0,0.05499547]
[1693470772184,0.940776,27260.0,27259.0,0.02]
[1693470772414,0.733676,27260.0,27259.0,0.02]
[1693470773427,1.471365,27260.0,27259.0,0.02]
[1693470774907,1.471365,27260.0,27259.0,0.041]
[1693470774908,1.475365,27260.0,27259.0,0.041]
[1693470775734,2.51192615,27260.0,27259.0,0.041]
[1693470775936,2.51192615,27260.0,27259.0,0.021]
[1693470777853,2.59981133,27260.0,27259.0,0.021]
[1693470782924,2.59981133,27260.0,27259.0,0.03764779]
[1693470789614,1.86612233,27260.0,27259.0,0.03764779]
[1693470792702,0.09588518,27260.0,27259.0,0.03764779]
[1693470793065,0.09588518,27260.0,27259.0,1.52505179]
[1693470793289,0.09588518,27260.0,27259.0,2.25875379]
[1693470794117,0.008,27260.0,27259.0,2.25875379]
[1693470798355,0.008,27260.0,27259.0,2.33415379]
[1693470804613,0.008,27260.0,27259.0,3.83399972]
[1693470804798,0.008,27260.0,27259.0,5.41315717]
[1693470805406,0.008,27260.0,27259.0,5.54513919]
[1693470805605,0.004,27260.0,27259.0,5.45719059]
[1693470805965,0.733444,27269.0,27259.0,5.45719059]
[1693470805966,0.733444,27269.0,27264.0,2.200695]
[1693470806179,0.733444,27269.0,27266.0,1.467016]
[1693470806386,0.92144277,27270.0,27267.0,0.77350711]
[1693470806551,0.92144277,27270.0,27268.0,0.02]
[1693470806552,0.833417,27270.0,27268.0,0.02]
[1693470806750,0.833417,27270.0,27268.0,0.06003411]
[1693470806977,1.566841,27270.0,27268.0,0.02]
[1693470807756,1.573841,27270.0,27268.0,0.021]
[1693470807957,0.006,27269.0,27268.0,0.021]
[1693470808353,1.573841,27270.0,27268.0,0.021]
[1693470808728,1.592841,27270.0,27268.0,0.023]
[1693470808936,1.573841,27270.0,27268.0,0.021]
[1693470809125,1.566841,27270.0,27268.0,0.02]
[1693470809269,0.739433,27269.0,27268.0,0.021]
[1693470809473,1.04260994,27269.0,27268.0,0.026]
[1693470809909,1.04160994,27269.0,27268.0,0.02]
[1693470810312,1.04160994,27269.0,27268.0,0.023]
[1693470810719,1.77504294,27269.0,27268.0,0.022]
[1693470811164,1.77504294,27269.0,27268.0,0.02]
[1693470811499,1.78104294,27269.0,27268.0,0.021]
[1693470811818,1.77504294,27269.0,27268.0,0.02]
[1693470812222,1.77704294,27269.0,27268.0,0.035]
[1693470812624,1.77704294,27269.0,27268.0,0.04984886]
[1693470812841,1.77604294,27269.0,27268.0,0.04384886]
[1693470813306,1.77804294,27269.0,27268.0,0.06384886]
[1693470818075,2.51147594,27269.0,27268.0,0.06384886]
[1693470830915,2.203299,27269.0,27268.0,0.06384886]
[1693470831121,2.32450263,27269.0,27268.0,0.04384886]
[1693470831324,2.61479649,27269.0,27268.0,0.04384886]
[1693470832264,2.32450263,27269.0,27268.0,0.04384886]
[1693470832784,2.76598174,27269.0,27268.0,0.04384886]
[1693470832995,2.82988174,27269.0,27268.0,0.04384886]
[1693470833197,2.76598174,27269.0,27268.0,0.04384886]
[1693470833435,2.76598174,27269.0,27268.0,0.029]
[1693470834019,2.82784174,27269.0,27268.0,0.029]
[1693470834218,2.76598174,27269.0,27268.0,0.029]
[1693470834746,2.83012174,27269.0,27268.0,0.029]
[1693470834897,2.76598174,27269.0,27268.0,0.029]
[1693470845243,2.85400751,27269.0,27268.0,0.029]
[1693470848076,2.98604616,27269.0,27268.0,0.029]
[1693470848271,2.89802039,27269.0,27268.0,0.029]
[1693470848479,3.18333927,27269.0,27268.0,0.029]
[1693470848729,3.27130281,27269.0,27268.0,0.029]
[1693470848930,3.18333927,27269.0,27268.0,0.029]
[1693470849502,3.18333927,27269.0,27268.0,0.04385585]
[1693470850048,3.27130793,27269.0,27268.0,0.04385585]
[1693470850220,3.13926928,27269.0,27268.0,0.04385585]
[1693470850427,3.27130793,27269.0,27268.0,0.04385585]
[1693470850633,3.18333927,27269.0,27268.0,0.04385585]
[1693470852423,3.35939081,27269.0,27268.0,0.04385585]
[1693470853459,3.22735216,27269.0,27268.0,0.04385585]
[1693470853680,3.35931454,27269.0,27268.0,0.04385585]
[1693470855020,3.28391454,27269.0,27268.0,0.04385585]
[1693470855932,3.28380528,27269.0,27268.0,0.04385585]
[1693470857139,3.35920528,27269.0,27268.0,0.04385585]
[1693470859374,3.22724614,27269.0,27268.0,0.04385585]
[1693470859921,3.35921591,27269.0,27268.0,0.04385585]
[1693470860367,3.22724614,27269.0,27268.0,0.04385585]
[1693470860582,3.35920684,27269.0,27268.0,0.04385585]
[1693470860987,3.22724614,27269.0,27268.0,0.04385585]
[1693470861770,3.35920475,27269.0,27268.0,0.029]
[1693470861987,3.22724614,27269.0,27268.0,0.029]
[1693470862432,3.22724614,27269.0,27268.0,0.04392386]
[1693470865876,3.22724614,27269.0,27268.0,0.029]
[1693470868803,2.78576703,27269.0,27268.0,0.029]
[1693470869005,2.78576703,27269.0,27268.0,0.0455065]
[1693470870290,3.00569893,27269.0,27268.0,0.0455065]
[1693470870739,2.86116703,27269.0,27268.0,0.0455065]
[1693470870986,3.16185916,27269.0,27268.0,0.0455065]
[1693470871191,3.05539364,27269.0,27268.0,0.0455065]
[1693470871395,2.86156174,27269.0,27268.0,0.0455065]
[1693470871566,2.86156174,27269.0,27268.0,0.029]
[1693470871567,3.04002959,27269.0,27268.0,0.029]
[1693470871748,3.19076299,27269.0,27268.0,0.029]
[1693470871963,3.50024299,27269.0,27268.0,0.029]
[1693470872164,3.49872299,27269.0,27268.0,0.009]
[1693470872515,3.77044127,27269.0,27268.0,0.01]
[1693470872713,3.76804127,27269.0,27268.0,0.01]
[1693470872886,3.76840127,27269.0,27268.0,0.01]
[1693470873063,0.0999334,27268.0,27265.0,0.146853]
[1693470873271,0.17600078,27266.0,27265.0,0.146853]
[1693470873476,2.20571152,27266.0,27265.0,0.146853]
[1693470873703,2.29469152,27266.0,27265.0,0.146853]
[1693470873860,2.29463152,27266.0,27265.0,0.146853]
[1693470874265,3.02802552,27266.0,27265.0,0.146853]
[1693470874629,3.03296552,27266.0,27265.0,0.147853]
[1693470874873,3.03290552,27266.0,27265.0,0.147853]
[1693470875054,3.03396552,27266.0,27265.0,0.154853]
[1693470875587,3.03372552,27266.0,27265.0,0.154853]
[1693470875761,3.03396552,27266.0,27265.0,0.154853]
[1693470875962,3.03390552,27266.0,27265.0,0.154853]
[1693470876163,3.03420552,27266.0,27265.0,0.154853]
[1693470876388,3.03408552,27266.0,27265.0,0.154853]
[1693470876595,3.03384552,27266.0,27265.0,0.154853]
[1693470876801,3.03378552,27266.0,27265.0,0.154853]
[1693470877013,3.03396552,27266.0,27265.0,0.154853]
[1693470877192,3.03366552,27266.0,27265.0,0.154853]
[1693470877719,3.02742552,27266.0,27265.0,0.154853]
[1693470877949,3.02748552,27266.0,27265.0,0.154853]
[1693470878150,3.02742552,27266.0,27265.0,0.154853]
[1693470878285,3.02604552,27266.0,27265.0,0.154853]
[1693470878482,3.02598552,27266.0,27265.0,0.154853]
[1693470878892,3.02604552,27266.0,27265.0,0.154853]
[1693470879232,3.02502552,27266.0,27265.0,0.154853]
[1693470879439,3.02592552,27266.0,27265.0,0.154853]
[1693470879617,3.02550552,27266.0,27265.0,0.154853]
[1693470879819,3.02136552,27266.0,27265.0,0.154853]
[1693470880017,3.01548552,27266.0,27265.0,0.154853]
[1693470880224,3.01626552,27266.0,27265.0,0.154853]
[1693470880434,3.01632552,27266.0,27265.0,0.154853]
[1693470880623,3.01746552,27266.0,27265.0,0.154853]
[1693470881037,3.01752552,27266.0,27265.0,0.154853]
[1693470881239,3.01764552,27266.0,27265.0,0.154853]
[1693470881619,3.02160552,27266.0,27265.0,0.154853]
[1693470881841,3.02550552,27266.0,27265.0,0.154853]
[1693470882067,3.02568552,27266.0,27265.0,0.154853]
[1693470882463,3.02580552,27266.0,27265.0,0.154853]
[1693470882644,3.02562552,27266.0,27265.0,0.154853]
[1693470882842,3.02568552,27266.0,27265.0,0.154853]
[1693470883090,3.02592552,27266.0,27265.0,0.154853]
[1693470883296,3.02280552,27266.0,27265.0,0.154853]
[1693470883494,3.02262552,27266.0,27265.0,0.154853]
[1693470883848,3.01986552,27266.0,27265.0,0.154853]
[1693470884051,3.01902552,27266.0,27265.0,0.154853]
[1693470884256,3.01974552,27266.0,27265.0,0.154853]
[1693470884460,3.01902552,27266.0,27265.0,0.154853]
[1693470884710,3.01926552,27266.0,27265.0,0.154853]
[1693470884909,3.04908682,27266.0,27265.0,0.154853]
[1693470885199,3.04944682,27266.0,27265.0,0.154853]
[1693470885407,3.04836682,27266.0,27265.0,0.154853]
[1693470885657,3.04782682,27266.0,27265.0,0.154853]
[1693470885811,3.17922029,27266.0,27265.0,0.154853]
[1693470886022,3.04620682,27266.0,27265.0,0.154853]
[1693470886182,3.04776682,27266.0,27265.0,0.154853]
[1693470886388,3.04734682,27266.0,27265.0,0.154853]
[1693470886587,3.04782682,27266.0,27265.0,0.154853]
[1693470886789,3.04926682,27266.0,27265.0,0.154853]
[1693470886996,3.1800577,27266.0,27265.0,0.154853]
[1693470887195,3.1794577,27266.0,27265.0,0.154853]
[1693470887690,3.1795177,27266.0,27265.0,0.154853]
[1693470887893,3.1795777,27266.0,27265.0,0.154853]
[1693470888104,3.1798177,27266.0,27265.0,0.154853]
[1693470888287,3.1870777,27266.0,27265.0,0.154853]
[1693470888487,3.1870177,27266.0,27265.0,0.154853]
[1693470888624,3.1870777,27266.0,27265.0,0.008]
[1693470888821,3.1882177,27266.0,27265.0,0.008]
[1693470889069,3.1878577,27266.0,27265.0,0.008]
[1693470889280,3.1879777,27266.0,27265.0,0.008]
[1693470889478,3.05604682,27266.0,27265.0,0.008]
[1693470889682,3.05616682,27266.0,27265.0,0.008]
[1693470889878,3.05724682,27266.0,27265.0,0.008]
[1693470890526,3.05718682,27266.0,27265.0,0.008]
[1693470890838,3.05628682,27266.0,27265.0,0.008]
[1693470890965,3.18778719,27266.0,27265.0,0.008]
[1693470891167,3.18766719,27266.0,27265.0,0.008]
[1693470891368,3.18778719,27266.0,27265.0,0.008]
[1693470891783,3.18742719,27266.0,27265.0,0.008]
[1693470892346,3.18754719,27266.0,27265.0,0.008]
[1693470892557,3.18640719,27266.0,27265.0,0.008]
[1693470892754,3.18526719,27266.0,27265.0,0.008]
[1693470892962,3.18514719,27266.0,27265.0,0.008]
[1693470893188,3.18520719,27266.0,27265.0,0.008]
[1693470893697,3.18448719,27266.0,27265.0,0.008]
[1693470893832,3.18454719,27266.0,27265.0,0.008]
[1693470894034,3.18778719,27266.0,27265.0,0.008]
[1693470894258,3.18796719,27266.0,27265.0,0.008]
[1693470894439,3.18670719,27266.0,27265.0,0.008]
[1693470894634,3.18604719,27266.0,27265.0,0.008]
[1693470895035,3.18634719,27266.0,27265.0,0.008]
[1693470895439,3.18640719,27266.0,27265.0,0.008]
[1693470895701,3.18694719,27266.0,27265.0,0.008]
[1693470895898,3.18706719,27266.0,27265.0,0.008]
[1693470896103,3.18724719,27266.0,27265.0,0.008]
[1693470896309,3.18712719,27266.0,27265.0,0.008]
[1693470896619,3.18736719,27266.0,27265.0,0.008]
[1693470897195,3.18478719,27266.0,27265.0,0.008]
[1693470897447,3.18466719,27266.0,27265.0,0.008]
[1693470897648,3.05122112,27266.0,27265.0,0.008]
[1693470898468,3.05122112,27266.0,27265.0,0.02455224]
[1693470899214,3.18314149,27266.0,27265.0,0.02455224]
[1693470900216,3.05122112,27266.0,27265.0,0.02455224]
[1693470904478,3.05122112,27266.0,27265.0,0.008]
[1693470904698,3.05122112,27266.0,27265.0,0.02289357]
[1693470905731,2.98322511,27266.0,27265.0,0.02289357]
[1693470905930,2.98262511,27266.0,27265.0,0.02289357]
[1693470906141,2.98262511,27266.0,27265.0,0.008]